fUST/lending_fUST_20251121
["ID","MTS","AMOUNT","RATE_DAILY","PERIOD"]
[394549492,1763695554924,-500.0,0.00036986,15]
[394549493,1763695554963,-500.0,0.00036986,15]
[394549494,1763695555000,-431.75173822,0.00036986,15]
[394549495,1763695555039,-270.19463758,0.00036986,15]
[394549496,1763695555077,-500.0,0.00036986,15]
[394549497,1763695555116,-1000.0,0.00037,120]
[394549498,1763695555156,-168.11886626,0.00037,120]
[394549499,1763695555195,-267.58367175,0.00037,120]
[394549500,1763695555236,-1000.0,0.00037,120]
[394549501,1763695555274,-3457.97638868,0.00037,120]
[394549502,1763695555316,-2000.0,0.00037,20]
[394549503,1763695555353,-4321.11,0.00037,14]
[394549504,1763695555389,-2253.61109,0.00037,120]
[394549505,1763695555425,-151.92,0.00037004,60]
[394549506,1763695555463,-239.0,0.0003706,120]
[394549507,1763695555501,-151.92,0.00037104,60]
[394549508,1763695555538,-162.0,0.00037146,120]
[394549509,1763695555576,-260.0,0.00037154,120]
[394549510,1763695555613,-151.92,0.00037204,60]
[394549511,1763695555651,-520.0,0.00037283,120]
[394549512,1763695555688,-151.0,0.00037284,14]
[394549513,1763695555726,-784.0,0.0003729,120]
[394549514,1763695555767,-238.0,0.00037293,120]
[394549515,1763695555808,-151.92,0.00037304,60]
[394549516,1763695555846,-159.0,0.00037323,120]
[394549517,1763695555884,-200.0,0.00037353,120]
[394549518,1763695555922,-175.0,0.00037404,120]
[394549520,1763695555957,-151.92,0.00037404,60]
[394549521,1763695555994,-271.94,0.00037478,120]
[394549522,1763695556030,-202.0,0.00037479,59]
[394549523,1763695556065,-379.30218393,0.0003748,30]
[394549524,1763695556102,-151.0,0.000375,120]
[394549525,1763695556140,-152.01645866,0.00037504,60]
[394549526,1763695556176,-1498.0,0.00037524,60]
[394549527,1763695556215,-2025.02405773,0.00037593,40]
[394549528,1763695556252,-1714.33872426,0.00037594,40]
[394549529,1763695556289,-235.0,0.00037684,120]
[394549530,1763695556326,-1875.0,0.00037724,120]
[394549531,1763695556364,-200.0,0.00037748,120]
[394549532,1763695556406,-317.0,0.00037774,120]
[394549533,1763695556444,-4382.36,0.00037996,120]
[394549534,1763695556483,-1805.6617462,0.00038,120]
[394549535,1763695556520,-2000.0,0.00038,60]
[394549536,1763695556561,-825.69035129,0.00038,30]
[394549537,1763695556601,-1001.95972216,0.00038,120]
[394549538,1763695556643,-1505.879246,0.00038,27]
[394549540,1763695556682,-28235.64,0.000381,120]
[394549541,1763695556725,-1000.0,0.000382,120]
[394549542,1763695556765,-1976.706453,0.0003828,12]
[394549543,1763695556805,-1000.0,0.000383,12]
[394549544,1763695556845,-1000.0,0.0003832,12]
[394549545,1763695556982,-1000.0,0.0003834,12]
[394549546,1763695557026,-5559.25,0.0003835,90]
[394549547,1763695557069,-151.0,0.00038356,90]
[394549548,1763695557108,-1000.0,0.0003836,12]
[394549549,1763695557147,-1000.0,0.0003838,12]
[394549550,1763695557186,-151.0,0.00038383,90]
[394549551,1763695557224,-1021.97173944,0.000384,120]
[394549552,1763695557263,-150.0,0.000384,120]
[394549553,1763695557302,-150.0,0.000384,120]
[394549554,1763695557341,-500.0,0.000384,120]
[394549555,1763695557380,-3000.0,0.000384,35]
[394549557,1763695557418,-250.0,0.000384,10]
[394549558,1763695557464,-1000.0,0.000384,12]
[394549559,1763695557510,-500.0,0.00038409,15]
[394549560,1763695557553,-500.0,0.00038409,15]
[394549561,1763695557594,-500.0,0.00038409,10]
[394549562,1763695557633,-500.0,0.00038409,10]
[394549563,1763695557676,-500.0,0.00038409,30]
[394549564,1763695557715,-31265.00366343,0.0003841,20]
[394549578,1763695569483,151.0,0.00038475,50]
[394549579,1763695569777,151.0,0.00038475,50]
[394549580,1763695570072,155.684345,0.00038475,50]
[394549599,1763695577683,-10303.24,0.00032877,10]
[394549600,1763695577729,-10646.69,0.00032877,10]
[394549601,1763695577770,-353.13058887,0.00033,10]
[394549603,1763695577814,-1702.890963,0.000377,26]
[394549605,1763695577852,-1000.0,0.000382,26]
[394549606,1763695577891,-250.0,0.000384,10]
[394549607,1763695577928,-15380.99633657,0.0003841,20]
[394549608,1763695577966,-3000.0,0.0003841,35]
[394549609,1763695578002,-6108.55445633,0.0003841,20]
[394549610,1763695578040,-5086.685407,0.0003842,35]
[394549611,1763695578079,-1000.0,0.0003842,12]
[394549612,1763695578120,-174.0,0.00038428,14]
[394549613,1763695578160,-175.17889104,0.00038428,14]
[394549614,1763695578200,-1000.0,0.0003844,12]
[394549615,1763695578239,-151.0,0.00038445,14]
[394549616,1763695578277,-151.0,0.00038445,14]
[394549617,1763695578317,-173.8827281,0.00038445,14]
[394549618,1763695578357,-151.0,0.00038445,14]
[394549619,1763695578398,-162.0,0.00038445,14]
[394549620,1763695578440,-151.0,0.00038445,14]
[394549621,1763695578481,-255.27838164,0.00038445,14]
[394549622,1763695578521,-162.0,0.00038445,14]
[394549623,1763695578561,-151.0,0.00038445,14]
[394549624,1763695578600,-151.0,0.00038445,14]
[394549625,1763695578641,-162.0,0.00038445,14]
[394549627,1763695578680,-151.0,0.00038445,14]
[394549628,1763695578718,-162.0,0.00038445,14]
[394549630,1763695578758,-151.0,0.00038445,14]
[394549631,1763695578796,-162.0,0.00038445,14]
[394549632,1763695578834,-151.0,0.00038445,14]
[394549633,1763695578873,-151.0,0.00038445,14]
[394549634,1763695578911,-151.0,0.00038445,14]
[394549635,1763695578949,-333.0,0.00038445,14]
[394549636,1763695578989,-151.0,0.00038445,14]
[394549637,1763695579029,-333.0,0.00038445,14]
[394549639,1763695579070,-151.0,0.00038445,14]
[394549640,1763695579202,-152.0,0.00038445,14]
[394549641,1763695579246,-166.0,0.00038445,14]
[394549642,1763695579287,-333.0,0.00038445,14]
[394549643,1763695579331,-151.0,0.00038445,14]
[394549644,1763695579371,-152.0,0.00038445,14]
[394549645,1763695579412,-333.0,0.00038445,14]
[394549646,1763695579453,-151.0,0.00038445,14]
[394549647,1763695579495,-152.0,0.00038445,14]
[394549648,1763695579537,-333.0,0.00038445,14]
[394549649,1763695579580,-151.0,0.00038445,14]
[394549650,1763695579621,-152.0,0.00038445,14]
[394549651,1763695579661,-333.0,0.00038445,14]
[394549652,1763695579703,-151.0,0.00038445,14]
[394549653,1763695579743,-152.0,0.00038445,14]
[394549654,1763695579783,-333.0,0.00038445,14]
[394549655,1763695579825,-151.0,0.00038445,14]
[394549656,1763695579864,-152.0,0.00038445,14]
[394549657,1763695579902,-151.0,0.00038445,14]
[394549658,1763695579942,-333.0,0.00038445,14]
[394549659,1763695579979,-152.0,0.00038445,14]
[394549660,1763695580017,-151.0,0.00038445,14]
[394549661,1763695580057,-333.0,0.00038445,14]
[394549662,1763695580097,-152.0,0.00038445,14]
[394549663,1763695580136,-333.0,0.00038445,14]
[394549664,1763695580176,-151.0,0.00038445,14]
[394549665,1763695580216,-152.0,0.00038445,14]
[394549666,1763695580254,-333.0,0.00038445,14]
[394549667,1763695580293,-269.06871832,0.00038445,14]
[394549668,1763695580336,-333.0,0.00038445,14]
[394549669,1763695580377,-152.0,0.00038445,14]
[394549670,1763695580417,-333.0,0.00038445,14]
[394549671,1763695580457,-152.0,0.00038445,14]
[394549672,1763695580496,-333.0,0.00038445,14]
[394549673,1763695580534,-152.0,0.00038445,14]
[394549674,1763695580575,-166.0,0.00038445,14]
[394549675,1763695580616,-152.0,0.00038445,14]
[394549676,1763695580657,-166.0,0.00038445,14]
[394549677,1763695580698,-152.0,0.00038445,14]
[394549678,1763695580737,-166.0,0.00038445,14]
[394549679,1763695580775,-152.0,0.00038445,14]
[394549680,1763695580813,-166.0,0.00038445,14]
[394549681,1763695580866,-152.0,0.00038445,14]
[394549682,1763695580907,-152.0,0.00038445,14]
[394549683,1763695580945,-172.0,0.00038445,14]
[394549684,1763695580985,-152.0,0.00038445,14]
[394549685,1763695581155,-166.0,0.00038445,14]
[394549686,1763695581197,-152.0,0.00038445,14]
[394549687,1763695581237,-152.0,0.00038445,14]
[394549688,1763695581278,-152.0,0.00038445,14]
[394549689,1763695581319,-152.0,0.00038445,14]
[394549690,1763695581361,-152.0,0.00038445,14]
[394549691,1763695581401,-152.0,0.00038445,14]
[394549692,1763695581443,-152.0,0.00038445,14]
[394549693,1763695581488,-152.0,0.00038445,14]
[394549694,1763695581530,-152.0,0.00038445,14]
[394549695,1763695581575,-151.0,0.00038445,14]
[394549696,1763695581616,-151.0,0.00038445,14]
[394549697,1763695581658,-151.0,0.00038445,14]
[394549698,1763695581698,-151.0,0.00038445,14]
[394549699,1763695581738,-151.0,0.00038445,14]
[394549700,1763695581779,-151.0,0.00038445,14]
[394549701,1763695581819,-151.0,0.00038445,14]
[394549702,1763695581859,-297.40381325,0.00038445,14]
[394549703,1763695581898,-151.0,0.00038445,14]
[394549704,1763695581937,-1031.86231323,0.00038452,14]
[394549705,1763695581975,-500.0,0.00038453,14]
[394549706,1763695582020,-500.0,0.00038453,14]
[394549707,1763695582089,-1000.0,0.0003846,12]
[394549708,1763695582157,-2142.36,0.0003847,120]
[394549709,1763695582223,-500.0,0.0003847,30]
[394549710,1763695582289,-2000.0,0.00038475,20]
[394549711,1763695582350,-500.0,0.00038475,20]
[394549712,1763695582409,-871.62002874,0.00038475,14]
[394549713,1763695582481,-166.0,0.00038475,14]
[394549714,1763695582542,-151.0,0.00038475,14]
[394549715,1763695582601,-166.0,0.00038475,14]
[394549716,1763695582661,-182.88700122,0.00038475,14]
[394549717,1763695582718,-162.0,0.00038475,14]
[394549718,1763695582777,-166.0,0.00038475,14]
[394549719,1763695582834,-333.0,0.00038475,14]
[394549720,1763695582889,-162.0,0.00038475,14]
[394549721,1763695582943,-166.0,0.00038475,14]
[394549722,1763695583008,-151.0,0.00038475,14]
[394549723,1763695583071,-333.0,0.00038475,14]
[394549724,1763695583137,-172.0,0.00038475,14]
[394549725,1763695583199,-151.0,0.00038475,14]
[394549726,1763695583262,-333.0,0.00038475,14]
[394549727,1763695583304,-333.0,0.00038475,14]
[394549728,1763695583502,-151.0,0.00038475,14]
[394549729,1763695583566,-151.0,0.00038475,14]
[394549730,1763695583610,-333.0,0.00038475,14]
[394549731,1763695583655,-151.0,0.00038475,14]
[394549732,1763695583697,-223.09337994,0.00038475,14]
[394549733,1763695583740,-333.0,0.00038475,14]
[394549734,1763695583781,-333.0,0.00038475,14]
[394549735,1763695583825,-151.0,0.00038475,14]
[394549736,1763695583868,-333.0,0.00038475,14]
[394549737,1763695583911,-151.0,0.00038475,14]
[394549738,1763695583952,-333.0,0.00038475,14]
[394549739,1763695583993,-151.0,0.00038475,14]
[394549740,1763695584034,-333.0,0.00038475,14]
[394549741,1763695584076,-333.0,0.00038475,14]
[394549743,1763695584115,-333.0,0.00038475,14]
[394549744,1763695584156,-333.0,0.00038475,14]
[394549745,1763695584199,-333.0,0.00038475,14]
[394549746,1763695584241,-333.0,0.00038475,14]
[394549747,1763695584281,-333.0,0.00038475,14]
[394549748,1763695584320,-333.0,0.00038475,14]
[394549749,1763695584359,-333.0,0.00038475,14]
[394549750,1763695584400,-333.0,0.00038475,14]
[394549751,1763695584444,-333.0,0.00038475,14]
[394549752,1763695584489,-333.0,0.00038475,14]
[394549753,1763695584531,-333.0,0.00038475,14]
[394549754,1763695584575,-333.0,0.00038475,14]
[394549755,1763695584618,-333.0,0.00038475,14]
[394549756,1763695584660,-333.0,0.00038475,14]
[394549757,1763695584701,-333.0,0.00038475,14]
[394549758,1763695584740,-333.0,0.00038475,14]
[394549759,1763695584778,-333.0,0.00038475,14]
[394549760,1763695584816,-333.0,0.00038475,14]
[394549762,1763695584850,-333.0,0.00038475,14]
[394549763,1763695584886,-229.93079569,0.00038475,14]
[394549764,1763695584924,-333.0,0.00038475,14]
[394549765,1763695584962,-333.0,0.00038475,14]
[394549766,1763695585001,-333.0,0.00038475,14]
[394549767,1763695585039,-333.0,0.00038475,14]
[394549768,1763695585080,-333.0,0.00038475,14]
[394549769,1763695585120,-333.0,0.00038475,14]
[394549770,1763695585160,-333.0,0.00038475,14]
[394549771,1763695585207,-333.0,0.00038475,14]
[394549772,1763695585248,-333.0,0.00038475,14]
[394549773,1763695585288,-333.0,0.00038475,14]
[394549774,1763695585329,-333.0,0.00038475,14]
[394549775,1763695585368,-333.0,0.00038475,14]
[394549776,1763695585407,-333.0,0.00038475,14]
[394549777,1763695585447,-333.0,0.00038475,14]
[394549779,1763695585486,-333.0,0.00038475,14]
[394549780,1763695585526,-333.0,0.00038475,14]
[394549781,1763695585569,-333.0,0.00038475,14]
[394549782,1763695585609,-333.0,0.00038475,14]
[394549783,1763695585649,-333.0,0.00038475,14]
[394549784,1763695585692,-333.0,0.00038475,14]
[394549785,1763695585735,-333.0,0.00038475,14]
[394549786,1763695585777,-333.0,0.00038475,14]
[394549787,1763695585818,-333.0,0.00038475,14]
[394549788,1763695585858,-333.0,0.00038475,14]
[394549789,1763695586002,-333.0,0.00038475,14]
[394549790,1763695586044,-174.0,0.00038475,14]
[394549791,1763695586093,-2000.0,0.00038478,120]
[394549792,1763695586137,-1000.0,0.0003848,12]
[394549793,1763695586177,-1186.034655,0.0003848,12]
[394549795,1763695586215,-150.0,0.00038481,10]
[394549797,1763695586252,-2000.0,0.000385,60]
[394549798,1763695586291,-1023.39,0.000385,60]
[394549799,1763695586334,-1000.0,0.000385,12]
[394549800,1763695586374,-1000.0,0.000385,12]
[394549801,1763695586420,-1500.0,0.000385,27]
[394549802,1763695586461,-250.0,0.000385,10]
[394549803,1763695586500,-374.66893473,0.00038524,120]
[394549804,1763695586541,-500.0,0.0003853,20]
[394549805,1763695586582,-310.02,0.0003854,20]
[394549806,1763695586621,-500.0,0.0003854,50]
[394549807,1763695586661,-500.0,0.00038543,20]
[394549808,1763695586699,-500.0,0.00038548,30]
[394549809,1763695586739,-1000.0,0.00038548,120]
[394549810,1763695586779,-735.0,0.00038549,30]
[394549811,1763695586817,-500.0,0.00038549,60]
[394549813,1763695586852,-500.0,0.00038549,30]
[394549814,1763695586887,-1193.29135717,0.00038559,20]
[394549815,1763695586927,-250.0,0.000386,10]
[394549816,1763695586968,-200.0,0.00038644,120]
[394549817,1763695587009,-500.0,0.0003867,30]
[394549818,1763695587051,-151.0,0.000387,120]
[394549819,1763695587089,-250.0,0.000387,10]
[394549820,1763695587129,-500.0,0.00038749,20]
[394549821,1763695587166,-250.0,0.000388,10]
[394549822,1763695587204,-472.39168303,0.0003887,30]
[394549823,1763695587243,-932.11744839,0.00038875,120]
[394549824,1763695587282,-250.0,0.000389,10]
[394549825,1763695587321,-200.0,0.00038971,120]
[394549826,1763695587359,-44324.97779445,0.00039,10]
[394549827,1763695587398,-1000.0,0.00039,120]
[394549828,1763695587437,-2155.30047377,0.00039,30]
[394549830,1763695587475,-1491.96426062,0.00039,30]
[394549831,1763695587513,-1173.44220617,0.00039,120]
[394549832,1763695587553,-151.53436869,0.00039,30]
[394549833,1763695587592,-250.0,0.00039,10]
[394549834,1763695587632,-500.0,0.00039023,20]
[394549835,1763695587671,-250.0,0.000391,10]
[394549836,1763695587709,-213.0,0.00039123,120]
[394549837,1763695587746,-250.0,0.000392,10]
[394549838,1763695587784,-175.0,0.00039274,120]
[394549839,1763695587821,-500.0,0.00039297,20]
[394549840,1763695587857,-250.0,0.000393,10]
[394549841,1763695587891,-163.0,0.0003933,120]
[394549842,1763695587927,-250.0,0.000394,10]
[394549843,1763695587962,-250.0,0.000395,10]
[394549844,1763695587998,-500.0,0.00039571,20]
[394549845,1763695588036,-200.0,0.00039705,120]
[394549846,1763695588073,-4190.38445769,0.000398,20]
[394549847,1763695588107,-451.92,0.000398,90]
[394549848,1763695588142,-568.42,0.00039845,20]
[394549849,1763695588175,-921.62978632,0.0003989,120]
[394549850,1763695588211,-200.0,0.00039899,120]
[394549852,1763695588247,-151.0,0.000399,120]
[394549853,1763695588287,-17991.13922181,0.0004,30]
[394549854,1763695588336,-1024.49703301,0.0004,10]
[394549855,1763695588383,-1000.0,0.0004,120]
[394549856,1763695588430,-2498.30971737,0.0004,120]
[394549857,1763695588476,-2723.90446198,0.0004,120]
[394549858,1763695588519,-1134.31839598,0.0004,30]
[394549859,1763695588564,-218.85148568,0.0004,120]
[394549860,1763695588609,-297.03795905,0.0004,120]
[394549861,1763695588658,-259.19371502,0.0004,30]
[394549862,1763695588702,-500.0,0.0004,30]
[394549863,1763695588744,-170.88375022,0.0004,120]
[394549864,1763695588786,-300.0,0.0004,120]
[394549865,1763695588832,-1000.0,0.0004,120]
[394549866,1763695588872,-185.0,0.0004,10]
[394549868,1763695589023,-3000.0,0.0004,120]
[394549869,1763695589066,-2000.0,0.0004,120]
[394549870,1763695589108,-20150.56693547,0.0004,120]
[394549871,1763695589149,-4321.11,0.0004,14]
[394549872,1763695589187,-2000.0,0.0004,90]
[394549873,1763695589223,-164.0,0.0004,90]
[394549874,1763695589260,-353.13058887,0.0004,30]
[394549875,1763695589299,-353.13058887,0.0004,10]
[394549876,1763695589340,-200.0,0.00040003,120]
[394549877,1763695589377,-171.92713253,0.00040027,30]
[394549878,1763695589414,-1252.36072843,0.000401,120]
[394549879,1763695589451,-1724.684035,0.00040183,120]
[394549880,1763695589486,-171.92713253,0.00040219,30]
[394549881,1763695589522,-200.0,0.00040243,120]
[394549882,1763695589562,-200.0,0.00040302,120]
[394549883,1763695589601,-500.0,0.00040329,30]
[394549885,1763695589640,-171.92713253,0.00040411,30]
[394549886,1763695589683,-1000.0,0.00040427,30]
[394549887,1763695589722,-200.0,0.00040446,120]
[394549888,1763695589763,-171.92713253,0.00040603,30]
[394549889,1763695589803,-171.92713253,0.00040795,30]
[394549890,1763695589841,-975.36001043,0.00040875,120]
[394549891,1763695589880,-171.92713253,0.00040986,30]
[394549892,1763695589919,-1000.0,0.00041,120]
[394549893,1763695589959,-1000.0,0.00041,120]
[394549894,1763695590004,-3000.0,0.00041,120]
[394549895,1763695590047,-2278.55,0.00041096,120]
[394549896,1763695590091,-390.62,0.00041096,120]
[394549897,1763695590136,-500.0,0.00041096,31]
[394549898,1763695590179,-500.0,0.00041096,31]
[394549899,1763695590221,-382.07681485,0.00041096,31]
[394549901,1763695590259,-500.0,0.00041096,31]
[394549902,1763695590298,-500.0,0.00041096,31]
[394549903,1763695590343,-500.0,0.00041096,31]
[394549904,1763695590382,-500.0,0.00041096,31]
[394549905,1763695590425,-438.6913336,0.00041096,31]
[394549906,1763695590466,-200.0,0.00041112,120]
[394549907,1763695590518,-171.92713253,0.00041178,30]
[394549908,1763695590571,-151.0,0.000412,120]
[394549909,1763695590627,-163.0,0.00041297,120]
[394549910,1763695590687,-163.0,0.00041315,120]
[394549911,1763695590741,-171.92713253,0.0004137,30]
[394549912,1763695590794,-400.0,0.000414,120]
[394549913,1763695590844,-171.92713253,0.00041562,30]
[394549915,1763695590893,-550.0,0.00041644,10]
[394549916,1763695590948,-171.92713253,0.00041753,30]
[394549917,1763695590992,-200.0,0.00041836,120]
[394549918,1763695591042,-164.0,0.00041895,90]
[394549919,1763695591090,-171.92713253,0.00041945,30]
[394549920,1763695591137,-200.0,0.00041947,120]
[394549921,1763695591183,-1000.0,0.00042,120]
[394549922,1763695591229,-460.41354302,0.00042,120]
[394549923,1763695591276,-300.0,0.00042,120]
[394549924,1763695591325,-3000.0,0.00042,120]
[394549925,1763695591371,-2000.0,0.00042,120]
[394549926,1763695591419,-171.92713253,0.00042137,30]
[394549927,1763695591465,-500.0,0.0004225,120]
[394549928,1763695591511,-1802.76762218,0.000424,120]
[394549929,1763695591559,-151.0,0.000424,120]
[394549930,1763695591605,-650.0,0.00042466,10]
[394549931,1763695591651,-200.0,0.00042603,120]
[394549932,1763695591700,-153.0,0.00042827,30]
[394549933,1763695591747,-1018.60257247,0.00042875,120]
[394549934,1763695591792,-20189.27814188,0.00043,60]
[394549935,1763695591841,-1000.0,0.00043,120]
[394549936,1763695591886,-1000.0,0.00043,120]
[394549938,1763695591932,-300.0,0.00043,120]
[394549939,1763695591978,-1500.0,0.00043,120]
[394549940,1763695592023,-3000.0,0.00043,120]
[394549941,1763695592069,-303194.871,0.0004322,30]
[394549942,1763695592115,-750.0,0.00043288,10]
[394549943,1763695592161,-163.0,0.00043362,120]
[394549945,1763695592355,-175.0,0.00043507,120]
[394549947,1763695592400,-200.0,0.00043516,120]
[394549948,1763695592438,-200.0,0.00043579,120]
[394549949,1763695592477,-151.0,0.000436,120]
[394549950,1763695592516,-787.74528965,0.00044,120]
[394549951,1763695592556,-1000.0,0.00044,120]
[394549952,1763695592596,-300.0,0.00044,120]
[394549953,1763695592637,-3013.13,0.00044,120]
[394549954,1763695592680,-671.11,0.00044109,30]
[394549955,1763695592719,-850.0,0.0004411,10]
[394549956,1763695592758,-300.0,0.000444,120]
[394549957,1763695592795,-417884.9958319,0.00044444,10]
[394549958,1763695592831,-200.0,0.00044515,120]
[394549959,1763695592867,-1122.47416484,0.000449,120]
[394549960,1763695592904,-151.0,0.000449,120]
[394549961,1763695592940,-950.0,0.00044932,10]
[394549962,1763695592975,-1098.55750419,0.00045,120]
[394549963,1763695593012,-1000.0,0.00045,120]
[394549964,1763695593050,-2498.30971737,0.00045,120]
[394549965,1763695593087,-1009.84897242,0.00045,120]
[394549966,1763695593124,-1221.0633068,0.00045,120]
[394549967,1763695593163,-1774.97575131,0.00045,120]
[394549968,1763695593202,-1850.39750412,0.00045,120]
[394549969,1763695593241,-950416.67548288,0.00045,14]
[394549997,1763695634229,-768.48561498,6.725e-05,2]
[394549998,1763695634249,-165.28628805,6.8e-05,2]
[394549999,1763695634268,-768.48561498,7.921e-05,2]
[394550000,1763695634287,-188.52506853,8.482e-05,2]
[394550001,1763695634306,-332.77952288,8.749e-05,2]
[394550002,1763695634326,-300.0,8.752e-05,2]
[394550003,1763695634348,-500.0,8.753e-05,2]
[394550004,1763695634369,-500.0,8.753e-05,2]
[394550006,1763695634389,-470.73032876,8.753e-05,2]
[394550012,1763695648082,-29.26967124,8.753e-05,2]
[394550013,1763695648107,-500.0,8.753e-05,2]
[394550014,1763695648143,-265.95047891,8.766e-05,2]
[394550015,1763695648167,-500.0,8.766e-05,2]
[394550016,1763695648190,-500.0,8.766e-05,2]
[394550017,1763695648214,-608.49783763,8.766e-05,2]
[394550018,1763695648238,-500.0,8.766e-05,2]
[394550019,1763695648260,-500.0,8.766e-05,2]
[394550020,1763695648448,-500.0,8.766e-05,2]
[394550021,1763695648470,-500.0,8.766e-05,2]
[394550022,1763695648498,-500.0,8.766e-05,2]
[394550023,1763695648524,-464.11604615,8.766e-05,2]
[394550024,1763695648553,-500.0,8.766e-05,2]
[394550025,1763695648578,-500.0,8.766e-05,2]
[394550026,1763695648611,-500.0,8.766e-05,2]
[394550027,1763695648634,-500.0,8.766e-05,2]
[394550028,1763695648662,-500.0,8.766e-05,2]
[394550029,1763695648695,-500.0,8.766e-05,2]
[394550030,1763695648718,-500.0,8.766e-05,2]
[394550031,1763695648745,-500.0,8.766e-05,2]
[394550032,1763695648773,-500.0,8.766e-05,2]
[394550033,1763695648796,-500.0,8.766e-05,2]
[394550034,1763695648827,-500.0,8.766e-05,2]
[394550035,1763695648854,-349.3408192,8.766e-05,2]
[394550071,1763695684666,5863.73279125,0.00038475,120]
[394550093,1763695704392,151.0,0.00038475,50]
[394550095,1763695704738,151.0,0.00038475,50]
[394550143,1763695728129,3498.48461067,0.00038462,120]
[394550158,1763695825425,151.0,0.00038462,50]
[394550159,1763695825735,151.0,0.00038462,50]
[394550160,1763695826037,256.465549,0.00038462,50]
[394550188,1763695831993,-251.49275417,8.364e-05,2]
[394550189,1763695832003,-263.47036149,8.507e-05,2]
[394550190,1763695832012,-300.0,8.668e-05,2]
[394550191,1763695832021,-1200.0,8.668e-05,2]
[394550192,1763695832030,-127085.9425906,8.669e-05,2]
[394550194,1763695832045,-62403.65504394,8.669e-05,2]
[394550230,1763695838125,-415.54107994,8.668e-05,2]
[394550231,1763695838135,-400.94420418,8.668e-05,2]
[394550232,1763695838145,-500.0,8.668e-05,2]
[394550233,1763695838155,-500.0,8.668e-05,2]
[394550234,1763695838165,-500.0,8.668e-05,2]
[394550235,1763695838174,-500.0,8.668e-05,2]
[394550236,1763695838184,-500.0,8.668e-05,2]
[394550237,1763695838193,-500.0,8.668e-05,2]
[394550238,1763695838203,-500.0,8.668e-05,2]
[394550239,1763695838212,-500.0,8.668e-05,2]
[394550240,1763695838222,-500.0,8.668e-05,2]
[394550241,1763695838231,-500.0,8.668e-05,2]
[394550242,1763695838242,-500.0,8.668e-05,2]
[394550243,1763695838251,-500.0,8.668e-05,2]
[394550244,1763695838260,-500.0,8.668e-05,2]
[394550245,1763695838270,-500.0,8.668e-05,2]
[394550246,1763695838279,-500.0,8.668e-05,2]
[394550247,1763695838288,-500.0,8.668e-05,2]
[394550248,1763695838297,-500.0,8.668e-05,2]
[394550249,1763695838307,-500.0,8.668e-05,2]
[394550250,1763695838316,-500.0,8.668e-05,2]
[394550251,1763695838325,-500.0,8.668e-05,2]
[394550252,1763695838335,-482.8282732,8.668e-05,2]
[394550253,1763695838344,-500.0,8.668e-05,2]
[394550254,1763695838354,-500.0,8.668e-05,2]
[394550255,1763695838363,-500.0,8.668e-05,2]
[394550256,1763695838373,-60923.25453163,8.669e-05,2]
[394550257,1763695838384,-8784.3933303,8.669e-05,2]
[394550258,1763695838395,-44110.06232444,8.669e-05,2]
[394550259,1763695838406,-22480.45102758,8.669e-05,2]